[Event "55th Biel Festival MTO 2022"]
[Site "Biel"]
[Date "2022.07.16"]
[Round "4.25"]
[White "Mahitosh Dey"]
[Black "Hilby Craig"]
[Result "1/2-1/2"]
[ECO "A40"]
[WhiteElo "2212"]
[BlackElo "2422"]
[Annotator "ChessBase"]
[PlyCount "56"]
[EventDate "2022.07.13"]
[EventType "swiss"]
[EventCountry "SUI"]
[SourceTitle "playchess.com"]
[Source "ChessBase"]
[SourceQuality "1"]
[TimeControl "40/5400+30:1800+30"]

1. d4 {[%emt 0:00:04]} Na6 {[%emt 0:06:37]} 2. g3 {[%emt 0:03:10]} g6 {[%emt 0:00:29]} 3. Bg2 {[%emt 0:00:08]} Bg7 {[%emt 0:00:10]} 4. c3 {[%emt 0:01:35]} d5 {[%emt 0:00:42]} 5. Na3 {[%emt 0:00:39]} Nf6 {[%emt 0:00:59]} 6. Nf3 {[%emt 0:00:19]} O-O {[%emt 0:00:25]} 7. O-O {[%emt 0:00:06]} c5 {[%emt 0:00:44]} 8. dxc5 {[%emt 0:00:34]} Nxc5 {[%emt 0:00:22]} 9. Be3 {[%emt 0:00:08]} b6 {[%emt 0:04:11]} 10. Bd4 {[%emt 0:00:26]} Bb7 {[%emt 0:02:24]} 11. Ne5 {[%emt 0:00:22]} Ne6 {[%emt 0:02:12]} 12. e3 {[%emt 0:00:54]} Nxd4 {[%emt 0:03:30]} 13. cxd4 {[%emt 0:00:07]} Nd7 {[%emt 0:00:22]} 14. Nxd7 {[%emt 0:02:14]} Qxd7 {[%emt 0:00:02]} 15. Qb3 {[%emt 0:00:08]} Rfc8 {[%emt 0:04:59]} 16. Rfc1 {[%emt 0:00:31]} e6 {[%emt 0:00:31]} 17. Nc2 {[%emt 0:01:44]} Ba6 {[%emt 0:07:51]} 18. Na3 {[%emt 0:00:27]} Bf8 {[%emt 0:04:47]} 19. Bf1 {[%emt 0:00:05]} Bxf1 {[%emt 0:04:07]} 20. Kxf1 {[%emt 0:00:06]} Rc6 {[%emt 0:01:19]} 21. Rxc6 {[%emt 0:03:48]} Qxc6 {[%emt 0:00:28]} 22. Nb5 {[%emt 0:01:27]} a6 {[%emt 0:03:10]} 23. Nc3 {[%emt 0:00:05]} b5 {[%emt 0:00:33]} 24. Rc1 {[%emt 0:00:19]} Qc4+ {[%emt 0:09:36]} 25. Ne2 {[%emt 0:00:12]} Qxb3 {[%emt 0:00:12]} 26. axb3 {[%emt 0:00:05]} a5 {[%emt 0:05:10]} 27. Nf4 {[%emt 0:00:05]} a4 {[%emt 0:01:14]} 28. Ra1 {[%emt 0:01:11]} Rb8 {[%emt 0:02:39]} 1/2-1/2

[Event "55th Biel Festival MTO 2022"]
[Site "Biel"]
[Date "2022.07.16"]
[Round "4.26"]
[White "Korley Kassa"]
[Black "Schlegel Igor"]
[Result "1-0"]
[ECO "E62"]
[WhiteElo "2421"]
[BlackElo "2194"]
[Annotator "ChessBase"]
[PlyCount "71"]
[EventDate "2022.07.13"]
[EventType "swiss"]
[EventCountry "SUI"]
[SourceTitle "playchess.com"]
[Source "ChessBase"]
[SourceQuality "1"]
[TimeControl "40/5400+30:1800+30"]

1. Nf3 {[%emt 0:00:04]} Nf6 {[%emt 0:00:05]} 2. g3 {[%emt 0:00:02]} g6 {[%emt 0:00:05]} 3. Bg2 {[%emt 0:00:03]} Bg7 {[%emt 0:00:04]} 4. d4 {[%emt 0:00:09]} O-O {[%emt 0:00:06]} 5. O-O {[%emt 0:00:03]} d6 {[%emt 0:00:06]} 6. c4 {[%emt 0:00:06]} Nc6 {[%emt 0:00:12]} 7. Nc3 {[%emt 0:00:20]} e5 {[%emt 0:00:07]} 8. d5 {[%emt 0:00:15]} Nb8 {[%emt 0:00:05]} 9. e4 {[%emt 0:00:05]} a5 {[%emt 0:00:11]} 10. Re1 {[%emt 0:00:31]} Na6 {[%emt 0:00:31]} 11. Rb1 {[%emt 0:00:17]} Nd7 {[%emt 0:08:48]} 12. a3 {[%emt 0:13:50]} Nb6 {[%emt 0:03:37]} 13. Bf1 {[%emt 0:00:46]} Nc5 {[%emt 0:15:01]} 14. b4 {[%emt 0:00:45]} axb4 {[%emt 0:00:05]} 15. axb4 {[%emt 0:00:02]} Nca4 {[%emt 0:00:08]} 16. Nxa4 {[%emt 0:01:50]} Nxa4 {[%emt 0:00:19]} 17. Qc2 {[%emt 0:01:19]} f5 {[%emt 0:02:54]} 18. Ng5 {[%emt 0:01:42]} fxe4 {[%emt 0:32:57]} 19. Ra1 {[%emt 0:13:06]} Bf5 {[%emt 0:08:45]} 20. Be3 {[%emt 0:03:46]} Nb6 {[%emt 0:06:42]} 21. Ne6 {[%emt 0:05:54]} Bxe6 {[%emt 0:00:19]} 22. dxe6 {[%emt 0:00:06]} Rb8 {[%emt 0:10:35]} 23. Red1 {[%emt 0:06:51]} Nc8 {[%emt 0:03:30]} 24. Qxe4 {[%emt 0:01:14]} Qf6 {[%emt 0:00:07]} 25. c5 {[%emt 0:01:51]} Qf5 {[%emt 0:04:41]} 26. Qh4 {[%emt 0:06:03]} Bf6 {[%emt 0:01:47]} 27. Qc4 {[%emt 0:00:06]} Be7 {[%emt 0:01:22]} 28. h4 {[%emt 0:04:59]} c6 {[%emt 0:00:33]} 29. Bd3 {[%emt 0:07:47]} Qh3 {[%emt 0:00:44]} 30. Qe4 {[%emt 0:05:43]} Qf5 {[%emt 0:00:29]} 31. Qxf5 {[%emt 0:03:16]} gxf5 {[%emt 0:00:01]} 32. Bh6 {[%emt 0:00:10]} Rf6 {[%emt 0:00:57]} 33. Bg5 {[%emt 0:00:08]} e4 {[%emt 0:00:03]} 34. cxd6 {[%emt 0:01:59]} Nxd6 {[%emt 0:00:25]} 35. Bc2 {[%emt 0:00:04]} Rxe6 {[%emt 0:00:27]} 36. Bxe7 {[%emt 0:00:16]} 1-0

[Event "55th Biel Festival MTO 2022"]
[Site "Biel"]
[Date "2022.07.16"]
[Round "4.27"]
[White "Gomez Barrera Javiera Belen"]
[Black "Gaehwiler Gabriel"]
[Result "0-1"]
[ECO "B23"]
[WhiteElo "2210"]
[BlackElo "2420"]
[Annotator "ChessBase"]
[PlyCount "78"]
[EventDate "2022.07.13"]
[EventType "swiss"]
[EventCountry "SUI"]
[SourceTitle "playchess.com"]
[Source "ChessBase"]
[SourceQuality "1"]
[TimeControl "40/5400+30:1800+30"]

1. e4 {[%emt 0:07:20]} c5 {[%emt 0:08:33]} 2. Nc3 {[%emt 0:00:58]} a6 {[%emt 0:06:53]} 3. Nge2 {[%emt 0:00:40]} d6 {[%emt 0:01:09]} 4. g3 {[%emt 0:05:42]} b5 {[%emt 0:07:00]} 5. Bg2 {[%emt 0:25:08]} Bb7 {[%emt 0:06:38]} 6. O-O {[%emt 0:07:32]} e6 {[%emt 0:06:16]} 7. d4 {[%emt 0:02:12]} Nd7 {[%emt 0:04:34]} 8. Re1 {[%emt 0:07:50]} Ngf6 {[%emt 0:10:17]} 9. a3 {[%emt 0:20:08]} Qc7 {[%emt 0:09:22]} 10. dxc5 {[%emt 0:09:30]} Nxc5 {[%emt 0:06:06]} 11. Nd4 {[%emt 0:01:12]} Be7 {[%emt 0:01:35]} 12. Qe2 {[%emt 0:02:06]} O-O {[%emt 0:05:00]} 13. Bd2 {[%emt 0:00:50]} Rac8 {[%emt 0:04:21]} 14. Rac1 {[%emt 0:03:58]} Rfd8 {[%emt 0:02:03]} 15. h3 {[%emt 0:00:42]} d5 {[%emt 0:02:33]} 16. exd5 {[%emt 0:00:55]} Nxd5 {[%emt 0:00:14]} 17. Nxd5 {[%emt 0:00:32]} Bxd5 {[%emt 0:00:16]} 18. Bxd5 {[%emt 0:01:08]} Rxd5 {[%emt 0:00:08]} 19. Be3 {[%emt 0:00:57]} Bf6 {[%emt 0:03:53]} 20. Red1 {[%emt 0:00:35]} Qd7 {[%emt 0:03:12]} 21. c3 {[%emt 0:00:31]} Rd8 {[%emt 0:00:57]} 22. Rf1 {[%emt 0:00:31]} e5 {[%emt 0:01:08]} 23. Nc2 {[%emt 0:00:25]} Nd3 {[%emt 0:01:54]} 24. Rb1 {[%emt 0:00:32]} Qxh3 {[%emt 0:00:35]} 25. Bb6 {[%emt 0:00:29]} Re8 {[%emt 0:02:56]} 26. Qe4 {[%emt 0:00:32]} Qd7 {[%emt 0:02:34]} 27. c4 {[%emt 0:00:31]} bxc4 {[%emt 0:00:21]} 28. Ne3 {[%emt 0:00:02]} Rb5 {[%emt 0:02:09]} 29. Nxc4 {[%emt 0:00:08]} Bd8 {[%emt 0:00:44]} 30. Rfd1 {[%emt 0:01:21]} Rd5 {[%emt 0:00:48]} 31. Ne3 {[%emt 0:00:31]} Rd6 {[%emt 0:00:30]} 32. Bxd8 {[%emt 0:00:30]} Qxd8 {[%emt 0:00:25]} 33. Nf5 {[%emt 0:00:28]} Nxf2 {[%emt 0:00:58]} 34. Nxd6 {[%emt 0:00:30]} Nxe4 {[%emt 0:00:04]} 35. Nxe8 {[%emt 0:00:09]} Qb6+ {[%emt 0:00:34]} 36. Kh1 {[%emt 0:00:49]} Nf2+ {[%emt 0:00:38]} 37. Kh2 {[%emt 0:00:33]} Nxd1 {[%emt 0:00:14]} 38. Rxd1 {[%emt 0:00:02]} Qf2+ {[%emt 0:00:27]} 39. Kh3 {[%emt 0:00:06]} Qf5+ {[%emt 0:00:09]} 0-1

[Event "55th Biel Festival MTO 2022"]
[Site "Biel"]
[Date "2022.07.16"]
[Round "4.28"]
[White "Lou Vincent"]
[Black "Dushyant Sharma"]
[Result "1-0"]
[ECO "D38"]
[WhiteElo "2200"]
[BlackElo "2416"]
[Annotator "ChessBase"]
[PlyCount "95"]
[EventDate "2022.07.13"]
[EventType "swiss"]
[EventCountry "SUI"]
[SourceTitle "playchess.com"]
[Source "ChessBase"]
[SourceQuality "1"]
[TimeControl "40/5400+30:1800+30"]

1. d4 {[%emt 0:00:21]} d5 {[%emt 0:00:04]} 2. c4 {[%emt 0:00:08]} e6 {[%emt 0:00:28]} 3. Nf3 {[%emt 0:00:12]} Nf6 {[%emt 0:00:25]} 4. Nc3 {[%emt 0:00:09]} Bb4 {[%emt 0:00:07]} 5. cxd5 {[%emt 0:01:57]} exd5 {[%emt 0:00:08]} 6. e3 {[%emt 0:08:46]} c5 {[%emt 0:08:00]} 7. a3 {[%emt 0:03:08]} Bxc3+ {[%emt 0:09:20]} 8. bxc3 {[%emt 0:00:05]} b6 {[%emt 0:10:18]} 9. Bb5+ {[%emt 0:04:18]} Bd7 {[%emt 0:00:55]} 10. Bd3 {[%emt 0:01:56]} O-O {[%emt 0:04:46]} 11. Nd2 {[%emt 0:09:14]} Qc8 {[%emt 0:09:31]} 12. O-O {[%emt 0:03:01]} cxd4 {[%emt 0:12:28]} 13. cxd4 {[%emt 0:01:38]} Qc3 {[%emt 0:00:14]} 14. Nb3 {[%emt 0:21:04]} Ba4 {[%emt 0:07:14]} 15. Rb1 {[%emt 0:02:11]} Rc8 {[%emt 0:08:06]} 16. Qe2 {[%emt 0:02:00]} Nbd7 {[%emt 0:10:07]} 17. Bd2 {[%emt 0:00:47]} Qc6 {[%emt 0:00:06]} 18. Ba6 {[%emt 0:04:11]} Re8 {[%emt 0:01:26]} 19. Rfc1 {[%emt 0:01:27]} Qe6 {[%emt 0:00:08]} 20. Bb4 {[%emt 0:09:24]} Rab8 {[%emt 0:01:44]} 21. Bd3 {[%emt 0:00:56]} a5 {[%emt 0:03:14]} 22. Be1 {[%emt 0:00:25]} Qd6 {[%emt 0:00:49]} 23. Qb2 {[%emt 0:00:31]} Ng4 {[%emt 0:04:32]} 24. g3 {[%emt 0:00:59]} Qh6 {[%emt 0:00:30]} 25. h4 {[%emt 0:02:36]} g5 {[%emt 0:00:10]} 26. Qe2 {[%emt 0:05:00]} Ndf6 {[%emt 0:00:52]} 27. Bd2 {[%emt 0:04:35]} gxh4 {[%emt 0:02:07]} 28. e4 {[%emt 0:00:52]} Qg7 {[%emt 0:01:36]} 29. e5 {[%emt 0:00:42]} hxg3 {[%emt 0:04:33]} 30. exf6 {[%emt 0:04:30]} gxf2+ {[%emt 0:00:36]} 31. Kh1 {[%emt 0:00:20]} Rxe2 {[%emt 0:00:49]} 32. fxg7 {[%emt 0:00:03]} Rbe8 {[%emt 0:00:34]} 33. Bxe2 {[%emt 0:01:08]} Rxe2 {[%emt 0:00:02]} 34. Bf4 {[%emt 0:03:31]} Bxb3 {[%emt 0:00:32]} 35. Kg2 {[%emt 0:01:40]} Bc4 {[%emt 0:00:42]} 36. Kf3 {[%emt 0:00:12]} Re6 {[%emt 0:00:45]} 37. Kxg4 {[%emt 0:00:31]} f1=Q {[%emt 0:00:30]} 38. Rxf1 {[%emt 0:00:09]} Bxf1 {[%emt 0:00:00]} 39. Rxf1 {[%emt 0:01:10]} Kxg7 {[%emt 0:00:51]} 40. Kf5 {[%emt 0:01:31]} Re2 {[%emt 0:00:09]} 41. Rg1+ {[%emt 0:09:16]} Kf8 {[%emt 0:02:43]} 42. Rb1 {[%emt 0:00:30]} Re6 {[%emt 0:00:30]} 43. Bc7 {[%emt 0:00:30]} Ke8 {[%emt 0:00:30]} 44. Bxb6 {[%emt 0:00:30]} Re3 {[%emt 0:00:08]} 45. Bc5 {[%emt 0:00:43]} h5 {[%emt 0:00:08]} 46. Rh1 {[%emt 0:01:40]} Kd7 {[%emt 0:00:39]} 47. Rxh5 {[%emt 0:00:41]} Kc6 {[%emt 0:00:12]} 48. Kf6 {[%emt 0:00:50]} 1-0

[Event "55th Biel Festival MTO 2022"]
[Site "Biel"]
[Date "2022.07.16"]
[Round "4.29"]
[White "Katz, Alexander"]
[Black "Vasquez Toledo Cristian"]
[Result "1-0"]
[ECO "B51"]
[WhiteElo "2402"]
[BlackElo "2206"]
[Annotator "ChessBase"]
[PlyCount "89"]
[EventDate "2022.07.13"]
[EventType "swiss"]
[EventCountry "SUI"]
[SourceTitle "playchess.com"]
[Source "ChessBase"]
[SourceQuality "1"]
[TimeControl "40/5400+30:1800+30"]

1. e4 {[%emt 0:01:40]} c5 {[%emt 0:07:00]} 2. Nf3 {[%emt 0:00:07]} d6 {[%emt 0:00:07]} 3. Bb5+ {[%emt 0:00:49]} Nd7 {[%emt 0:00:19]} 4. O-O {[%emt 0:00:36]} Ngf6 {[%emt 0:02:11]} 5. Re1 {[%emt 0:00:16]} a6 {[%emt 0:00:34]} 6. Bf1 {[%emt 0:00:11]} e6 {[%emt 0:00:42]} 7. c3 {[%emt 0:00:34]} Be7 {[%emt 0:03:36]} 8. d4 {[%emt 0:00:10]} cxd4 {[%emt 0:00:57]} 9. cxd4 {[%emt 0:00:08]} O-O {[%emt 0:00:10]} 10. a4 {[%emt 0:06:15]} b6 {[%emt 0:00:16]} 11. Nc3 {[%emt 0:01:03]} Bb7 {[%emt 0:00:07]} 12. Bd3 {[%emt 0:01:15]} e5 {[%emt 0:20:25]} 13. d5 {[%emt 0:00:35]} Nc5 {[%emt 0:00:26]} 14. Be3 {[%emt 0:07:44]} Rc8 {[%emt 0:10:25]} 15. Bc2 {[%emt 0:03:02]} a5 {[%emt 0:01:26]} 16. Nd2 {[%emt 0:05:26]} Nfd7 {[%emt 0:03:05]} 17. Nb5 {[%emt 0:07:50]} Ba6 {[%emt 0:02:07]} 18. Na7 {[%emt 0:00:20]} Rc7 {[%emt 0:02:21]} 19. Nc6 {[%emt 0:00:07]} Rxc6 {[%emt 0:02:45]} 20. dxc6 {[%emt 0:00:07]} Nb8 {[%emt 0:00:02]} 21. Nb1 {[%emt 0:07:45]} Nxc6 {[%emt 0:00:09]} 22. Nc3 {[%emt 0:00:04]} Bc4 {[%emt 0:11:59]} 23. Nd5 {[%emt 0:13:42]} Bxd5 {[%emt 0:02:16]} 24. Qxd5 {[%emt 0:00:24]} Nb4 {[%emt 0:03:39]} 25. Qd1 {[%emt 0:02:39]} Bg5 {[%emt 0:03:31]} 26. Bb3 {[%emt 0:03:19]} Bxe3 {[%emt 0:03:09]} 27. Rxe3 {[%emt 0:00:12]} g6 {[%emt 0:02:51]} 28. Bc4 {[%emt 0:03:50]} Kg7 {[%emt 0:00:11]} 29. Qd2 {[%emt 0:00:42]} Qe7 {[%emt 0:03:32]} 30. b3 {[%emt 0:02:34]} Rd8 {[%emt 0:01:55]} 31. Rd1 {[%emt 0:01:33]} f6 {[%emt 0:02:52]} 32. Rh3 {[%emt 0:02:00]} h5 {[%emt 0:00:09]} 33. Qe3 {[%emt 0:01:06]} Nc2 {[%emt 0:01:18]} 34. Qg3 {[%emt 0:00:30]} Nd4 {[%emt 0:00:22]} 35. Re1 {[%emt 0:02:00]} Rh8 {[%emt 0:01:43]} 36. Qc3 {[%emt 0:01:50]} Rc8 {[%emt 0:02:43]} 37. f4 {[%emt 0:17:54]} Ncxb3 {[%emt 0:02:34]} 38. f5 {[%emt 0:00:12]} Qc7 {[%emt 0:02:20]} 39. Qg3 {[%emt 0:00:48]} Qxc4 {[%emt 0:00:09]} 40. Qxg6+ {[%emt 0:00:22]} Kf8 {[%emt 0:00:02]} 41. Rxh5 {[%emt 0:34:17]} Nf3+ {[%emt 0:33:32]} 42. Kh1 {[%emt 0:02:08]} Qf7 {[%emt 0:00:20]} 43. Rh8+ {[%emt 0:00:50]} Ke7 {[%emt 0:00:02]} 44. Rxc8 {[%emt 0:00:15]} Qxg6 {[%emt 0:01:11]} 45. fxg6 {[%emt 0:00:05]} 1-0

[Event "55th Biel Festival MTO 2022"]
[Site "Biel"]
[Date "2022.07.16"]
[Round "4.30"]
[White "Song, Julien"]
[Black "Foerster-Yialamas Lucas"]
[Result "1-0"]
[ECO "A34"]
[WhiteElo "2391"]
[BlackElo "2147"]
[Annotator "ChessBase"]
[PlyCount "69"]
[EventDate "2022.07.13"]
[EventType "swiss"]
[EventCountry "SUI"]
[SourceTitle "playchess.com"]
[Source "ChessBase"]
[SourceQuality "1"]
[TimeControl "40/5400+30:1800+30"]

1. Nf3 {[%emt 0:00:59]} c5 {[%emt 0:01:39]} 2. c4 {[%emt 0:00:00]} Nc6 {[%emt 0:00:30]} 3. Nc3 {[%emt 0:00:00]} e5 {[%emt 0:03:27]} 4. e3 {[%emt 0:00:00]} Nf6 {[%emt 0:15:58]} 5. d4 {[%emt 0:00:50]} cxd4 {[%emt 0:00:30]} 6. exd4 {[%emt 0:00:30]} e4 {[%emt 0:00:30]} 7. Ne5 {[%emt 0:00:30]} Bb4 {[%emt 0:00:30]} 8. Be2 {[%emt 0:00:30]} Qa5 {[%emt 0:00:30]} 9. O-O {[%emt 0:00:30]} O-O {[%emt 0:06:31]} 10. Bf4 {[%emt 0:00:39]} Bxc3 {[%emt 0:12:24]} 11. bxc3 {[%emt 0:22:38]} Qxc3 {[%emt 0:01:47]} 12. Rc1 {[%emt 0:01:03]} Qa3 {[%emt 0:02:49]} 13. d5 {[%emt 0:10:11]} Nxe5 {[%emt 0:01:04]} 14. Bxe5 {[%emt 0:00:11]} Qe7 {[%emt 0:00:11]} 15. Bb2 {[%emt 0:00:35]} b6 {[%emt 0:07:06]} 16. Qd4 {[%emt 0:02:27]} d6 {[%emt 0:02:12]} 17. Rc3 {[%emt 0:02:16]} Ne8 {[%emt 0:09:28]} 18. Bh5 {[%emt 0:11:13]} f6 {[%emt 0:10:43]} 19. Re1 {[%emt 0:10:40]} Qe5 {[%emt 0:00:13]} 20. Qd1 {[%emt 0:00:00]} g6 {[%emt 0:01:24]} 21. Be2 {[%emt 0:02:36]} f5 {[%emt 0:05:22]} 22. Rb3 {[%emt 0:01:26]} Qe7 {[%emt 0:00:22]} 23. Qd4 {[%emt 0:00:16]} Ng7 {[%emt 0:02:10]} 24. Bf1 {[%emt 0:04:14]} Qc7 {[%emt 0:03:08]} 25. h4 {[%emt 0:03:44]} h5 {[%emt 0:03:07]} 26. Qd2 {[%emt 0:04:51]} Bb7 {[%emt 0:01:51]} 27. Qh6 {[%emt 0:01:26]} f4 {[%emt 0:02:05]} 28. Rxe4 {[%emt 0:05:22]} Bc8 {[%emt 0:00:13]} 29. Rxf4 {[%emt 0:01:52]} Bf5 {[%emt 0:00:37]} 30. Rg3 {[%emt 0:07:34]} Rae8 {[%emt 0:02:04]} 31. Rxf5 {[%emt 0:00:48]} Rxf5 {[%emt 0:00:09]} 32. Bxg7 {[%emt 0:02:38]} g5 {[%emt 0:02:03]} 33. Qh8+ {[%emt 0:00:42]} Kf7 {[%emt 0:00:07]} 34. Qxh5+ {[%emt 0:00:16]} Kxg7 {[%emt 0:00:21]} 35. Qxe8 {[%emt 0:00:13]} 1-0

[Event "55th Biel Festival MTO 2022"]
[Site "Biel"]
[Date "2022.07.16"]
[Round "4.32"]
[White "Papadiamandis, Elliot"]
[Black "Akshit Kumar J"]
[Result "1-0"]
[ECO "C42"]
[WhiteElo "2369"]
[BlackElo "2103"]
[Annotator "ChessBase"]
[PlyCount "151"]
[EventDate "2022.07.13"]
[EventType "swiss"]
[EventCountry "SUI"]
[SourceTitle "playchess.com"]
[Source "ChessBase"]
[SourceQuality "1"]
[TimeControl "40/5400+30:1800+30"]

1. e4 {[%emt 0:00:30]} e5 {[%emt 0:02:20]} 2. Nf3 {[%emt 0:00:11]} Nf6 {[%emt 0:00:09]} 3. Nxe5 {[%emt 0:00:07]} d6 {[%emt 0:00:06]} 4. Nf3 {[%emt 0:00:26]} Nxe4 {[%emt 0:00:06]} 5. Nc3 {[%emt 0:00:11]} Nxc3 {[%emt 0:00:07]} 6. dxc3 {[%emt 0:00:13]} Be7 {[%emt 0:00:05]} 7. Be3 {[%emt 0:01:03]} O-O {[%emt 0:00:17]} 8. Qd2 {[%emt 0:00:08]} Nd7 {[%emt 0:00:13]} 9. O-O-O {[%emt 0:01:20]} c6 {[%emt 0:00:07]} 10. h4 {[%emt 0:07:55]} d5 {[%emt 0:03:44]} 11. h5 {[%emt 0:05:23]} Nf6 {[%emt 0:05:08]} 12. h6 {[%emt 0:06:15]} g6 {[%emt 0:05:20]} 13. Bd3 {[%emt 0:06:55]} Bg4 {[%emt 0:03:14]} 14. Rde1 {[%emt 0:02:56]} Ne4 {[%emt 0:04:14]} 15. Bxe4 {[%emt 0:01:40]} dxe4 {[%emt 0:00:08]} 16. Qxd8 {[%emt 0:12:22]} Bxd8 {[%emt 0:16:51]} 17. Nd2 {[%emt 0:02:12]} Re8 {[%emt 0:14:26]} 18. Bf4 {[%emt 0:03:41]} g5 {[%emt 0:03:12]} 19. Bg3 {[%emt 0:02:15]} Bf5 {[%emt 0:02:34]} 20. f3 {[%emt 0:07:28]} e3 {[%emt 0:04:11]} 21. Nc4 {[%emt 0:00:44]} Bg6 {[%emt 0:00:38]} 22. Nxe3 {[%emt 0:03:28]} f5 {[%emt 0:04:38]} 23. Nc4 {[%emt 0:01:32]} f4 {[%emt 0:06:48]} 24. Bf2 {[%emt 0:01:40]} Bc7 {[%emt 0:05:34]} 25. Bc5 {[%emt 0:12:12]} Rad8 {[%emt 0:05:27]} 26. Bxa7 {[%emt 0:08:18]} Ra8 {[%emt 0:01:04]} 27. Bc5 {[%emt 0:03:25]} Rxa2 {[%emt 0:01:53]} 28. Rxe8+ {[%emt 0:00:16]} Bxe8 {[%emt 0:00:02]} 29. Kb1 {[%emt 0:00:17]} Ra8 {[%emt 0:00:54]} 30. Re1 {[%emt 0:01:19]} b5 {[%emt 0:02:23]} 31. Re7 {[%emt 0:01:00]} Bf7 {[%emt 0:00:54]} 32. Rxc7 {[%emt 0:01:10]} bxc4 {[%emt 0:00:14]} 33. Be7 {[%emt 0:02:23]} g4 {[%emt 0:01:48]} 34. Bd6 {[%emt 0:01:30]} Rd8 {[%emt 0:01:38]} 35. Bxf4 {[%emt 0:00:16]} gxf3 {[%emt 0:00:37]} 36. gxf3 {[%emt 0:00:05]} Rd1+ {[%emt 0:00:04]} 37. Ka2 {[%emt 0:00:33]} Bg6 {[%emt 0:00:16]} 38. Rxc6 {[%emt 0:01:49]} Bxc2 {[%emt 0:00:04]} 39. Rxc4 {[%emt 0:00:14]} Rf1 {[%emt 0:00:02]} 40. Rc7 {[%emt 0:01:43]} Rxf3 {[%emt 0:00:03]} 41. Bd6 {[%emt 0:11:07]} Rf6 {[%emt 0:07:08]} 42. Rc8+ {[%emt 0:05:10]} Kf7 {[%emt 0:01:02]} 43. Rf8+ {[%emt 0:00:40]} Ke6 {[%emt 0:00:03]} 44. Rxf6+ {[%emt 0:00:04]} Kxf6 {[%emt 0:00:07]} 45. Ka3 {[%emt 0:00:01]} Ke6 {[%emt 0:01:05]} 46. Bg3 {[%emt 0:00:08]} Kd5 {[%emt 0:02:16]} 47. Kb4 {[%emt 0:00:15]} Bd3 {[%emt 0:01:07]} 48. b3 {[%emt 0:00:05]} Kc6 {[%emt 0:07:08]} 49. c4 {[%emt 0:00:58]} Be2 {[%emt 0:02:31]} 50. Kc3 {[%emt 0:00:28]} Bd1 {[%emt 0:02:24]} 51. b4 {[%emt 0:00:14]} Be2 {[%emt 0:00:14]} 52. b5+ {[%emt 0:01:06]} Kb7 {[%emt 0:01:02]} 53. Kd4 {[%emt 0:00:15]} Bf1 {[%emt 0:01:06]} 54. Bh4 {[%emt 0:00:11]} Be2 {[%emt 0:00:30]} 55. Bd8 {[%emt 0:01:50]} Bf1 {[%emt 0:00:25]} 56. Ba5 {[%emt 0:00:04]} Be2 {[%emt 0:02:01]} 57. Kc5 {[%emt 0:00:17]} Kc8 {[%emt 0:02:56]} 58. Kb4 {[%emt 0:00:38]} Kd7 {[%emt 0:01:18]} 59. Bb6 {[%emt 0:00:37]} Bf1 {[%emt 0:01:13]} 60. Be3 {[%emt 0:00:15]} Kc7 {[%emt 0:02:34]} 61. Kc5 {[%emt 0:03:04]} Be2 {[%emt 0:00:36]} 62. Bf4+ {[%emt 0:00:21]} Kb7 {[%emt 0:00:13]} 63. Bd2 {[%emt 0:01:03]} Kc7 {[%emt 0:00:21]} 64. Ba5+ {[%emt 0:00:05]} Kd7 {[%emt 0:00:48]} 65. Kb4 {[%emt 0:02:06]} Bf1 {[%emt 0:01:35]} 66. c5 {[%emt 0:00:26]} Bg2 {[%emt 0:00:33]} 67. Kc3 {[%emt 0:00:19]} Bf1 {[%emt 0:02:50]} 68. c6+ {[%emt 0:00:43]} Kd6 {[%emt 0:00:07]} 69. Kb4 {[%emt 0:00:09]} Bg2 {[%emt 0:00:51]} 70. Bb6 {[%emt 0:00:04]} Be4 {[%emt 0:03:37]} 71. Bf2 {[%emt 0:00:52]} Bf3 {[%emt 0:01:15]} 72. Bg3+ {[%emt 0:01:19]} Kd5 {[%emt 0:00:05]} 73. Ka5 {[%emt 0:00:52]} Kc5 {[%emt 0:00:37]} 74. Bf2+ {[%emt 0:00:12]} Kd6 {[%emt 0:02:04]} 75. Kb6 {[%emt 0:00:11]} Be2 {[%emt 0:00:23]} 76. c7 {[%emt 0:01:37]} 1-0

[Event "55th Biel Festival MTO 2022"]
[Site "Biel"]
[Date "2022.07.16"]
[Round "4.33"]
[White "Aydin Gulenay"]
[Black "Unuk, Laura"]
[Result "1/2-1/2"]
[ECO "C07"]
[WhiteElo "2100"]
[BlackElo "2340"]
[Annotator "ChessBase"]
[PlyCount "62"]
[EventDate "2022.07.13"]
[EventType "swiss"]
[EventCountry "SUI"]
[SourceTitle "playchess.com"]
[Source "ChessBase"]
[SourceQuality "1"]
[TimeControl "40/5400+30:1800+30"]

1. e4 {[%emt 0:00:03]} e6 {[%emt 0:00:21]} 2. d4 {[%emt 0:00:09]} d5 {[%emt 0:00:06]} 3. Nd2 {[%emt 0:00:05]} c5 {[%emt 0:00:54]} 4. Ngf3 {[%emt 0:00:10]} cxd4 {[%emt 0:00:22]} 5. Nxd4 {[%emt 0:00:03]} Nf6 {[%emt 0:00:22]} 6. e5 {[%emt 0:00:27]} Nfd7 {[%emt 0:02:50]} 7. N2f3 {[%emt 0:00:20]} a6 {[%emt 0:04:25]} 8. Bf4 {[%emt 0:08:07]} Be7 {[%emt 0:10:24]} 9. Bd3 {[%emt 0:01:45]} Nc5 {[%emt 0:01:00]} 10. Be2 {[%emt 0:10:28]} O-O {[%emt 0:03:35]} 11. O-O {[%emt 0:02:41]} b5 {[%emt 0:07:47]} 12. c3 {[%emt 0:09:40]} Bb7 {[%emt 0:00:39]} 13. Re1 {[%emt 0:04:31]} Nbd7 {[%emt 0:03:31]} 14. Bf1 {[%emt 0:05:03]} Qb6 {[%emt 0:08:31]} 15. Nb3 {[%emt 0:20:04]} Nxb3 {[%emt 0:15:18]} 16. axb3 {[%emt 0:04:45]} f6 {[%emt 0:00:26]} 17. Be3 {[%emt 0:04:32]} Qc7 {[%emt 0:00:36]} 18. Bd4 {[%emt 0:00:58]} Rae8 {[%emt 0:01:26]} 19. b4 {[%emt 0:02:25]} f5 {[%emt 0:18:09]} 20. Qd2 {[%emt 0:00:32]} h6 {[%emt 0:00:21]} 21. h4 {[%emt 0:03:27]} Rf7 {[%emt 0:01:39]} 22. Bd3 {[%emt 0:03:22]} Nf8 {[%emt 0:00:22]} 23. Kf1 {[%emt 0:06:58]} Ra8 {[%emt 0:00:21]} 24. Qe2 {[%emt 0:01:03]} Ng6 {[%emt 0:03:48]} 25. g3 {[%emt 0:00:06]} Nf8 {[%emt 0:02:05]} 26. Nd2 {[%emt 0:00:52]} Nd7 {[%emt 0:01:17]} 27. Nb3 {[%emt 0:06:47]} Raf8 {[%emt 0:02:31]} 28. Kg1 {[%emt 0:00:40]} Bc8 {[%emt 0:03:28]} 29. Kh2 {[%emt 0:01:02]} Qd8 {[%emt 0:03:44]} 30. h5 {[%emt 0:01:28]} Qe8 {[%emt 0:04:35]} 31. Rh1 {[%emt 0:01:39]} Qd8 {[%emt 0:00:20]} 1/2-1/2